bitfinex/quotes_BTCUSD_20250812
["timestamp","ask_amount","ask_price","bid_price","bid_amount"]
[1755007919646,0.00513876,119050.0,119040.0,0.93869061]
[1755007919851,4.876e-05,119050.0,119040.0,0.94072061]
[1755007920063,4.876e-05,119050.0,119040.0,0.93994061]
[1755007920278,4.876e-05,119050.0,119040.0,0.93127134]
[1755007920486,0.1731354,119050.0,119040.0,0.19949073]
[1755007920918,0.1731354,119050.0,119040.0,0.36950148]
[1755007921147,0.1731354,119050.0,119040.0,0.20149073]
[1755007921378,0.1731354,119050.0,119040.0,0.36950148]
[1755007921593,0.1731354,119050.0,119040.0,0.36750148]
[1755007921800,0.00513876,119050.0,119040.0,0.36750148]
[1755007922009,0.1731354,119050.0,119040.0,0.36850148]
[1755007922215,0.00513876,119050.0,119040.0,0.36650148]
[1755007922443,0.1731354,119050.0,119040.0,0.36650148]
[1755007922564,0.00513876,119050.0,119040.0,0.36750148]
[1755007922759,0.00216876,119050.0,119040.0,0.92605134]
[1755007923008,4.876e-05,119050.0,119040.0,0.36953148]
[1755007923244,4.876e-05,119050.0,119040.0,0.92927134]
[1755007924125,4.876e-05,119050.0,119040.0,0.92605134]
[1755007924126,0.00216876,119050.0,119040.0,0.92605134]
[1755007924332,4.876e-05,119050.0,119040.0,0.92927134]
[1755007924568,4.876e-05,119050.0,119040.0,1.01199459]
[1755007924988,4.876e-05,119050.0,119040.0,1.00877459]
[1755007925258,4.876e-05,119050.0,119040.0,1.01199459]
[1755007925677,0.00213876,119050.0,119040.0,0.31410473]
[1755007925889,0.00213876,119050.0,119040.0,0.19949073]
[1755007925890,0.1733554,119050.0,119040.0,0.19949073]
[1755007926121,0.20748949,119050.0,119040.0,0.19949073]
[1755007926750,0.20748949,119050.0,119040.0,0.19849073]
[1755007926967,0.20748949,119050.0,119040.0,0.36650148]
[1755007927181,0.1733554,119050.0,119040.0,0.36550148]
[1755007927396,0.00213876,119050.0,119040.0,0.92403134]
[1755007927608,0.00104876,119050.0,119040.0,0.92707134]
[1755007927829,0.00104876,119050.0,119040.0,1.00778459]
[1755007928267,4.876e-05,119050.0,119040.0,1.00778459]
[1755007929106,4.876e-05,119050.0,119040.0,0.45126473]
[1755007929315,4.876e-05,119050.0,119040.0,1.00778459]
[1755007929532,4.876e-05,119050.0,119040.0,1.00978459]
[1755007930785,4.876e-05,119050.0,119040.0,1.00778459]
[1755007931016,4.876e-05,119050.0,119040.0,1.95119259]
[1755007931281,4.876e-05,119050.0,119040.0,1.95619259]
[1755007931680,4.876e-05,119050.0,119040.0,1.46683359]
[1755007931829,4.876e-05,119050.0,119040.0,1.15926473]
[1755007932038,4.876e-05,119050.0,119040.0,1.71578459]
[1755007932342,4.876e-05,119050.0,119040.0,1.71278459]
[1755007932516,4.876e-05,119050.0,119040.0,1.71678459]
[1755007932755,0.0676104,119090.0,119070.0,0.16796842]
[1755007932956,0.06765922,119090.0,119080.0,0.30407431]
[1755007933162,0.06765922,119090.0,119080.0,0.86059417]
[1755007933784,0.06765922,119090.0,119080.0,0.94635742]
[1755007933785,4.882e-05,119090.0,119080.0,0.94635742]
[1755007934456,0.00104882,119090.0,119080.0,0.94635742]
[1755007934670,0.00104882,119090.0,119080.0,0.95484525]
[1755007934902,0.00104882,119090.0,119080.0,0.95180525]
[1755007935318,4.882e-05,119090.0,119080.0,0.95180525]
[1755007935725,0.00104882,119090.0,119080.0,0.95180525]
[1755007936165,4.882e-05,119090.0,119080.0,0.95180525]
[1755007936398,4.882e-05,119090.0,119080.0,0.95381525]
[1755007936630,0.00413882,119090.0,119080.0,0.95381525]
[1755007937074,0.00204882,119090.0,119080.0,0.95685525]
[1755007937970,4.882e-05,119090.0,119080.0,0.95685525]
[1755007938208,0.00213882,119090.0,119080.0,0.95385525]
[1755007938411,0.17007903,119090.0,119080.0,0.16799431]
[1755007938638,0.27261999,119090.0,119080.0,4e-05]
[1755007938884,0.29949999,119090.0,119080.0,0.13612]
[1755007939552,0.03014882,119090.0,119080.0,0.30407431]
[1755007939763,0.00326882,119090.0,119080.0,0.30407431]
[1755007939971,4.882e-05,119090.0,119080.0,0.86059417]
[1755007940189,4.882e-05,119090.0,119080.0,0.30407431]
[1755007940630,0.00204882,119090.0,119080.0,0.30407431]
[1755007941492,0.17320903,119090.0,119080.0,0.30407431]
[1755007942149,0.17320903,119090.0,119080.0,4e-05]
[1755007942365,0.20732259,119090.0,119080.0,0.30403431]
[1755007943011,0.17320903,119090.0,119080.0,0.30403431]
[1755007944551,0.00526882,119090.0,119080.0,0.30403431]
[1755007944755,0.17320903,119090.0,119080.0,0.37403431]
[1755007946253,0.17529903,119090.0,119080.0,0.37403431]
[1755007946702,0.00735882,119090.0,119080.0,0.37403431]
[1755007947126,0.00204882,119090.0,119080.0,0.93256417]
[1755007947335,0.00204882,119090.0,119080.0,0.93560417]
[1755007947548,0.00413882,119090.0,119080.0,0.93055417]
[1755007947982,0.00413882,119090.0,119080.0,0.93256417]
[1755007948868,0.00204882,119090.0,119080.0,0.93560417]
[1755007949340,0.00204882,119090.0,119080.0,1.01832742]
[1755007949586,0.00735882,119090.0,119080.0,0.37399431]
[1755007950037,0.17529903,119090.0,119080.0,0.37399431]
[1755007950278,0.00413882,119090.0,119080.0,0.93252417]
[1755007950486,0.16998903,119090.0,119080.0,0.93252417]
[1755007950735,0.00204882,119090.0,119080.0,1.01828742]
[1755007955012,0.00413882,119090.0,119080.0,0.45872756]
[1755007955667,0.17528903,119090.0,119080.0,0.07004]
[1755007955920,0.20961055,119090.0,119080.0,0.37395431]
[1755007956342,0.00413882,119090.0,119080.0,0.93250417]
[1755007956559,0.00204882,119090.0,119080.0,1.01834742]
[1755007960585,0.00204882,119090.0,119080.0,1.04401171]
[1755007961728,0.00204882,119090.0,119080.0,1.04601171]
[1755007962380,0.00204882,119090.0,119080.0,1.74601171]
[1755007962749,0.00204882,119090.0,119080.0,2.52518371]
[1755007963159,4.882e-05,119090.0,119080.0,2.52518371]
[1755007963594,4.882e-05,119090.0,119080.0,1.82618371]
[1755007965196,4.882e-05,119090.0,119080.0,1.26966385]
[1755007965413,4.882e-05,119090.0,119080.0,1.17680571]
[1755007965740,4.882e-05,119090.0,119080.0,1.04701171]
[1755007966153,4.882e-05,119090.0,119080.0,1.21919571]
[1755007966357,4.882e-05,119090.0,119080.0,1.91919571]
[1755007969891,4.882e-05,119090.0,119080.0,1.88362371]
[1755007972606,1e-08,119090.0,119080.0,1.90107273]
[1755007976127,1e-08,119090.0,119080.0,1.90103273]
[1755007976974,1e-08,119090.0,119080.0,1.88358371]
[1755007977194,1e-08,119090.0,119080.0,1.85434671]
[1755007977617,1e-08,119090.0,119080.0,1.87955371]
[1755007978231,1e-08,119090.0,119080.0,1.21553885]
[1755007978439,1e-08,119090.0,119080.0,1.90891871]
[1755007979999,0.00203001,119090.0,119080.0,1.76889871]
[1755007980679,0.00524001,119090.0,119080.0,1.63110871]
[1755007980929,0.00524001,119090.0,119080.0,1.18514185]
[1755007981140,0.00524001,119090.0,119080.0,1.15947756]
[1755007981575,1e-08,119090.0,119080.0,1.71802742]
[1755007981793,1e-08,119090.0,119080.0,1.85691142]
[1755007981999,1e-08,119090.0,119080.0,1.72114742]
[1755007982215,1e-08,119090.0,119080.0,1.74635642]
[1755007982418,1e-08,119090.0,119080.0,2.33183442]
[1755007982630,0.00203001,119090.0,119080.0,2.22367842]
[1755007983054,0.00203001,119090.0,119080.0,1.36099756]
[1755007983276,0.00524001,119090.0,119080.0,1.91751742]
[1755007983497,0.00524001,119090.0,119080.0,1.36099756]
[1755007983700,0.00524001,119090.0,119080.0,1.21751742]
[1755007984588,0.00524001,119090.0,119080.0,0.66095756]
[1755007984809,0.00524001,119090.0,119080.0,0.57823431]
[1755007985255,0.00524001,119090.0,119080.0,0.57623431]
[1755007985463,0.00524001,119090.0,119080.0,0.57523431]
[1755007985669,0.00524001,119090.0,119080.0,0.57623431]
[1755007988784,0.17318022,119090.0,119080.0,0.57623431]
[1755007990552,0.17318022,119090.0,119080.0,0.57523431]
[1755007991421,0.00524001,119090.0,119080.0,0.57523431]
[1755007991634,0.17318022,119090.0,119080.0,0.57523431]
[1755007991845,0.00724001,119090.0,119080.0,0.57523431]
[1755007995337,0.00403001,119090.0,119080.0,1.13385417]
[1755007996355,0.00710001,119090.0,119080.0,1.13175417]
[1755007996746,0.00710001,119090.0,119080.0,0.57523431]
[1755007998803,0.00710001,119090.0,119080.0,1.14411006]
[1755008000382,0.00710001,119090.0,119080.0,0.57523431]
[1755008000587,0.00710001,119090.0,119080.0,1.14411006]
[1755008001352,0.00403001,119090.0,119080.0,1.14621006]
[1755008001588,0.00200001,119090.0,119080.0,0.94772006]
[1755008001989,0.00200001,119090.0,119080.0,1.59931906]
[1755008002194,0.00200001,119090.0,119080.0,1.03044331]
[1755008002836,0.00200001,119090.0,119080.0,0.46156756]
[1755008003246,0.00200001,119090.0,119080.0,1.03044331]
[1755008003443,0.00200001,119090.0,119080.0,0.46156756]
[1755008004013,1e-08,119090.0,119080.0,0.46156756]
[1755008004222,1e-08,119090.0,119080.0,0.46256756]
[1755008004634,1e-08,119090.0,119080.0,1.03144331]
[1755008004835,1e-08,119090.0,119080.0,0.46256756]
[1755008005454,0.16993022,119090.0,119080.0,0.24109431]
[1755008005661,0.17300022,119090.0,119080.0,0.37459431]
[1755008005862,0.17300022,119090.0,119080.0,0.07104]
[1755008006085,0.17300022,119090.0,119080.0,0.20664]
[1755008006514,0.17300022,119090.0,119080.0,0.07104]
[1755008006870,0.72850097,119090.0,119080.0,0.20664]
[1755008007002,0.72850097,119090.0,119080.0,0.20564]
[1755008007204,0.7367949,119090.0,119080.0,0.20564]
[1755008007434,0.7387949,119090.0,119080.0,0.20564]
[1755008007882,0.7367949,119090.0,119080.0,0.20564]
[1755008008090,0.22199782,119090.0,119080.0,0.20564]
[1755008008941,0.21370389,119090.0,119080.0,0.20564]
[1755008010304,0.76920464,119090.0,119080.0,0.07004]
[1755008010506,0.89453691,119090.0,119080.0,0.07004]
[1755008010709,0.33903616,119090.0,119080.0,0.13564]
[1755008011483,0.31387616,119090.0,119080.0,0.13564]
[1755008011669,0.17393022,119090.0,119080.0,0.13774]
[1755008012298,0.17700022,119090.0,119080.0,0.13564]
[1755008012511,0.73250097,119090.0,119080.0,0.13564]
[1755008012918,0.17700022,119090.0,119080.0,0.13564]
[1755008013145,0.76785038,119090.0,119080.0,0.13564]
[1755008013352,0.73250097,119090.0,119080.0,0.13564]
[1755008013988,0.81522422,119090.0,119080.0,0.13564]
[1755008014421,0.25972347,119090.0,119080.0,0.13564]
[1755008015058,0.25972347,119090.0,119080.0,0.30359431]
[1755008015473,0.25972347,119090.0,119080.0,0.13564]
[1755008015914,0.25972347,119090.0,119080.0,0.30359431]
[1755008016127,0.17393022,119090.0,119080.0,0.30574431]
[1755008016344,0.2113939,119090.0,119080.0,0.13564]
[1755008016542,0.17393022,119090.0,119080.0,0.30574431]
[1755008017166,0.17393022,119090.0,119080.0,0.13779]
[1755008017575,0.17691022,119090.0,119080.0,0.13564]
[1755008018878,0.73241097,119090.0,119080.0,0.13564]
[1755008019326,0.17691022,119090.0,119080.0,0.13564]
[1755008019892,0.25939465,119090.0,119080.0,0.13564]
[1755008020307,0.3421179,119090.0,119080.0,4e-05]
[1755008020514,0.91506767,119090.0,119080.0,0.13564]
[1755008021155,0.27708249,119090.0,119080.0,0.13564]
[1755008021952,0.25963347,119090.0,119080.0,0.13564]
[1755008022161,0.25665347,119090.0,119080.0,0.13779]
[1755008022408,0.17393022,119090.0,119080.0,0.30574431]
[1755008022623,0.17194022,119090.0,119080.0,0.30884431]
[1755008022925,0.00400001,119090.0,119080.0,0.30884431]
[1755008023594,0.00300001,119090.0,119080.0,0.30884431]
[1755008024055,0.00100001,119090.0,119080.0,0.30884431]
[1755008024327,0.16894022,119090.0,119080.0,0.30884431]
[1755008024561,1e-08,119090.0,119080.0,0.30884431]
[1755008024811,0.00200001,119090.0,119080.0,0.30884431]
[1755008026955,0.00200001,119090.0,119080.0,0.94706831]
[1755008027406,0.00200001,119090.0,119080.0,0.39156756]
[1755008027830,0.00200001,119090.0,119080.0,0.46156756]
[1755008028039,1e-08,119090.0,119080.0,0.46156756]
[1755008029749,1e-08,119090.0,119080.0,0.46256756]
[1755008029980,1e-08,119090.0,119080.0,1.01806831]
[1755008030700,1e-08,119090.0,119080.0,1.04328031]
[1755008032209,0.17629321,119120.0,119090.0,0.00839701]
[1755008032210,0.17625322,119120.0,119090.0,0.00839701]
[1755008032417,0.17625322,119120.0,119110.0,0.16791201]
[1755008032628,0.17829322,119120.0,119110.0,0.16791201]
[1755008032984,0.00204,119120.0,119110.0,0.17006201]
[1755008033202,0.16993791,119120.0,119110.0,0.17006201]
[1755008033407,0.17193791,119120.0,119110.0,0.17006201]
[1755008033856,0.17493791,119120.0,119110.0,0.17006201]
[1755008034271,0.17493791,119120.0,119110.0,0.00215]
[1755008034417,0.16791201,119110.0,119100.0,0.30653347]
[1755008034623,0.16791201,119110.0,119100.0,0.30868347]
[1755008035722,0.17287791,119120.0,119110.0,0.16791201]
[1755008035923,0.17491791,119120.0,119110.0,0.16791201]
[1755008036117,0.16993791,119120.0,119110.0,0.17006201]
[1755008036791,0.16791201,119110.0,119100.0,0.30653347]
[1755008036995,0.16995201,119110.0,119100.0,0.30558347]
[1755008037690,0.16995201,119110.0,119100.0,0.30562347]
[1755008037899,0.00204,119110.0,119100.0,0.30562347]
[1755008038103,0.16995201,119110.0,119100.0,0.30562347]
[1755008038306,0.16995201,119110.0,119100.0,0.30872347]
[1755008038510,0.00204,119110.0,119100.0,0.30872347]
[1755008038718,0.17387791,119120.0,119100.0,0.30872347]
[1755008038925,0.16791201,119110.0,119100.0,0.30872347]
[1755008039605,0.16995201,119110.0,119100.0,0.30872347]
[1755008039812,0.17087791,119120.0,119110.0,0.16791201]
[1755008040029,0.17291791,119120.0,119110.0,0.16791201]
[1755008040512,0.17391791,119120.0,119100.0,0.30657347]
[1755008040985,0.17291791,119120.0,119110.0,0.16791201]
[1755008041198,0.17293791,119120.0,119110.0,0.17006201]
[1755008041415,0.003,119120.0,119110.0,0.74188909]
[1755008041855,0.007,119120.0,119110.0,0.74188909]
[1755008042921,0.007,119120.0,119110.0,0.74192909]
[1755008043136,0.00298,119140.0,119130.0,0.16788382]
[1755008043349,0.24821202,119150.0,119140.0,0.16786973]
[1755008043557,0.25025202,119150.0,119140.0,0.16786973]
[1755008043780,0.25025202,119150.0,119140.0,0.17001973]
[1755008044432,0.25039852,119150.0,119140.0,0.17001973]
[1755008045094,0.25239852,119150.0,119140.0,0.17001973]
[1755008045310,0.07410878,119150.0,119140.0,0.17001973]
[1755008045535,0.07410878,119150.0,119140.0,0.17309973]
[1755008045793,0.24394442,119150.0,119140.0,0.17309973]
[1755008046012,0.24394442,119150.0,119140.0,0.17001973]
[1755008046467,0.07908878,119150.0,119140.0,0.17001973]
[1755008046709,0.07710878,119150.0,119140.0,0.74182681]
[1755008047602,0.07710878,119150.0,119140.0,0.17309973]
[1755008048037,0.07710878,119150.0,119140.0,0.74186681]
[1755008050347,0.07710878,119150.0,119140.0,0.82459006]
[1755008050556,0.07710878,119150.0,119140.0,0.25586298]
[1755008050765,0.07710878,119150.0,119140.0,0.82459006]
[1755008050993,0.07710878,119150.0,119140.0,0.25586298]
[1755008051380,0.07710878,119150.0,119140.0,0.82459006]
[1755008051583,0.07710878,119150.0,119140.0,0.25586298]
[1755008051788,0.07710878,119150.0,119140.0,0.82459006]
[1755008053504,0.07510878,119150.0,119140.0,0.82459006]
[1755008053707,0.07210878,119150.0,119140.0,0.82459006]
[1755008053910,0.07410878,119150.0,119140.0,0.82459006]
[1755008054325,0.07410878,119150.0,119140.0,0.25586298]
[1755008054535,0.07410878,119150.0,119140.0,0.82459006]
[1755008055008,0.07410878,119150.0,119140.0,0.25586298]
[1755008055215,0.07410878,119150.0,119140.0,0.82459006]
[1755008056280,0.07210878,119150.0,119140.0,0.82459006]
[1755008057137,0.07210878,119150.0,119140.0,2.27957006]
[1755008057345,0.07210878,119150.0,119140.0,2.30535262]
[1755008057779,0.07210878,119150.0,119140.0,2.24280462]
[1755008057989,0.07210878,119150.0,119140.0,1.48261562]
[1755008058200,0.07210878,119150.0,119140.0,1.48461562]
[1755008058386,0.07210878,119150.0,119140.0,1.23067162]
[1755008058654,0.07210878,119150.0,119140.0,0.92237262]
[1755008061087,0.07210878,119150.0,119140.0,1.62237262]
[1755008061717,0.07210878,119150.0,119140.0,1.64756962]
[1755008061928,0.07210878,119150.0,119140.0,1.07884254]
[1755008062131,0.07210878,119150.0,119140.0,1.64756962]
[1755008062787,0.07210878,119150.0,119140.0,1.78280962]
[1755008065179,0.07210878,119150.0,119140.0,1.21408254]
[1755008065545,0.07210878,119150.0,119140.0,3.20692462]
[1755008065754,0.07210878,119150.0,119140.0,3.7756517]
[1755008065957,0.07210878,119150.0,119140.0,3.20692462]
[1755008067969,0.07210878,119150.0,119140.0,2.52437364]
[1755008070991,0.07210878,119150.0,119140.0,3.22437364]
[1755008071700,0.07210878,119150.0,119140.0,2.52437364]
[1755008072742,0.00329,119180.0,119170.0,0.16782747]
[1755008072944,0.01309563,119180.0,119170.0,0.954968]
[1755008073998,0.01309563,119180.0,119170.0,0.957028]
[1755008074216,0.00902563,119180.0,119170.0,1.161548]
[1755008074422,0.0042,119180.0,119170.0,1.186739]
[1755008074840,0.0042,119180.0,119170.0,1.886739]
[1755008075072,0.0032,119180.0,119170.0,1.886739]
[1755008075285,0.0002,119180.0,119170.0,1.887739]
[1755008078176,0.0002,119180.0,119170.0,2.150819]
[1755008082376,0.0002,119180.0,119170.0,2.16826802]
[1755008083324,0.0002,119180.0,119170.0,1.46826802]
[1755008085806,0.0002,119180.0,119170.0,2.16826802]
[1755008087183,0.0002,119180.0,119170.0,1.46826802]
[1755008087666,0.00344,119210.0,119200.0,0.16778523]
[1755008087888,0.00547,119210.0,119200.0,0.95419556]
[1755008088104,0.00547,119210.0,119200.0,1.52505264]
[1755008088343,0.00547,119210.0,119200.0,0.41278348]
[1755008088560,0.00547,119210.0,119200.0,0.98151056]
[1755008088777,0.00223,119210.0,119200.0,0.98151056]
[1755008089434,0.00547,119210.0,119200.0,0.98151056]
[1755008090105,0.00547,119210.0,119200.0,1.68996224]
[1755008090355,0.00847,119210.0,119200.0,1.68996224]
[1755008090782,0.00547,119210.0,119200.0,1.68996224]
[1755008091927,0.00223,119210.0,119200.0,1.68996224]
[1755008092317,0.00219,119210.0,119200.0,1.68996224]
[1755008092531,0.00219,119210.0,119200.0,1.71498906]
[1755008092977,0.00543,119210.0,119200.0,1.71289906]
[1755008093345,0.00543,119210.0,119200.0,1.01289906]
[1755008093567,0.00543,119210.0,119200.0,0.44417198]
[1755008093771,0.00543,119210.0,119200.0,1.01289906]
[1755008093983,0.00543,119210.0,119200.0,0.44417198]
[1755008094195,0.00543,119210.0,119200.0,1.01289906]
[1755008094404,0.00543,119210.0,119200.0,1.01498906]
[1755008094737,0.00219,119210.0,119200.0,1.01498906]
[1755008094934,0.00219,119210.0,119200.0,1.01289906]
[1755008095136,0.00543,119210.0,119200.0,1.01289906]
[1755008096576,0.00543,119210.0,119200.0,1.71289906]
[1755008097613,0.00543,119210.0,119200.0,1.01289906]
[1755008098413,0.00543,119210.0,119200.0,0.44417198]
[1755008098639,0.00543,119210.0,119200.0,1.01289906]
[1755008099071,0.00219,119210.0,119200.0,1.01498906]
[1755008099284,0.00016,119210.0,119200.0,1.58672614]
[1755008099950,0.00016,119210.0,119200.0,3.00531414]
[1755008100834,0.00016,119210.0,119200.0,3.70531414]
[1755008101250,0.00016,119210.0,119200.0,3.70631414]
[1755008101691,0.00016,119210.0,119200.0,3.70731414]
[1755008102096,0.00016,119210.0,119200.0,3.70631414]
[1755008102311,0.00016,119210.0,119200.0,3.70831414]
[1755008102543,0.00016,119210.0,119200.0,3.72576316]
[1755008102750,1e-08,119210.0,119200.0,3.72576316]
[1755008103403,1e-08,119210.0,119200.0,3.72476316]
[1755008103609,1e-08,119210.0,119200.0,3.99316316]
[1755008103821,1e-08,119210.0,119200.0,3.99516316]
[1755008105663,1e-08,119210.0,119200.0,4.02016316]
[1755008105822,1e-08,119210.0,119200.0,4.63612631]
[1755008106026,1e-08,119210.0,119200.0,4.06739923]
[1755008106513,1e-08,119210.0,119200.0,4.09244032]
[1755008107153,0.0002,119240.0,119230.0,1.32264619]
[1755008107365,1e-08,119240.0,119230.0,1.74343944]
[1755008107584,1e-08,119240.0,119230.0,5.92708753]
[1755008107806,1e-08,119240.0,119230.0,5.04737953]
[1755008108520,1e-08,119240.0,119230.0,3.88788428]
[1755008108749,1e-08,119240.0,119230.0,3.88988428]
[1755008109617,1e-08,119240.0,119230.0,3.94005728]
[1755008109826,1e-08,119240.0,119230.0,3.92959728]
[1755008110262,1e-08,119240.0,119230.0,4.62959728]
[1755008110477,1e-08,119240.0,119230.0,4.65459728]
[1755008111736,1e-08,119240.0,119230.0,2.73243828]
[1755008113012,1e-08,119240.0,119230.0,2.43058628]
[1755008113243,0.00215001,119240.0,119230.0,2.16708228]
[1755008113468,1e-08,119240.0,119230.0,2.16708228]
[1755008114554,1e-08,119240.0,119230.0,3.30453644]
[1755008114975,1e-08,119240.0,119230.0,3.27953644]
[1755008115203,1e-08,119240.0,119230.0,3.30453644]
[1755008115695,1e-08,119240.0,119230.0,3.32677251]
[1755008115936,1e-08,119240.0,119230.0,3.30453644]
[1755008116595,1e-08,119240.0,119230.0,3.27953644]
[1755008116807,1e-08,119240.0,119230.0,3.30453644]
[1755008117659,1e-08,119240.0,119230.0,3.27953644]
[1755008117863,1e-08,119240.0,119230.0,3.30453644]
[1755008118279,1e-08,119240.0,119230.0,3.27953644]
[1755008118486,1e-08,119240.0,119230.0,3.30453644]
[1755008118903,1e-08,119240.0,119230.0,3.27953644]
[1755008119115,1e-08,119240.0,119230.0,3.30453644]
[1755008120189,0.00220172,119270.0,119260.0,0.7364279]
[1755008120433,0.00435172,119270.0,119260.0,1.65420135]
[1755008120619,0.00435172,119270.0,119260.0,1.65424135]
[1755008120884,0.00435172,119270.0,119260.0,1.67941035]
[1755008121102,0.00435172,119270.0,119260.0,1.74941035]
[1755008122075,0.00435172,119270.0,119260.0,1.18068327]
[1755008122287,0.00435172,119270.0,119260.0,1.74941035]
[1755008122477,0.00435172,119270.0,119260.0,1.77407489]
[1755008123420,0.02918172,119270.0,119260.0,1.07078781]
[1755008123641,0.02918172,119270.0,119260.0,1.07403489]
[1755008124302,0.00435172,119270.0,119260.0,1.07403489]
[1755008124952,0.00215,119270.0,119260.0,1.07606489]
[1755008125864,0.00215,119270.0,119260.0,1.07915489]
[1755008126294,0.00215,119270.0,119260.0,1.07606489]
[1755008126577,0.00215,119270.0,119260.0,1.77606489]
[1755008129330,0.00215,119270.0,119260.0,1.77915489]
[1755008129546,0.00308,119280.0,119270.0,0.16768676]
[1755008129764,0.00523,119280.0,119270.0,1.65361709]
[1755008129979,0.00215,119280.0,119270.0,1.08696001]
[1755008130185,0.00215,119280.0,119270.0,1.65568709]
[1755008130598,0.00215,119280.0,119270.0,1.08696001]
[1755008130805,0.00315,119280.0,119270.0,1.65568709]
[1755008130990,0.00315,119280.0,119270.0,1.66058709]
[1755008131245,0.00315,119280.0,119270.0,1.65855709]
[1755008131246,0.00623,119280.0,119270.0,1.65855709]
[1755008131469,0.00623,119280.0,119270.0,1.66695689]
[1755008132543,0.00315,119280.0,119270.0,1.66898689]
[1755008132752,0.001,119280.0,119270.0,1.67207689]
[1755008133196,0.001,119280.0,119270.0,1.10334981]
[1755008133428,0.00315,119280.0,119270.0,1.29946981]
[1755008133647,0.00315,119280.0,119270.0,1.86819689]
[1755008133863,0.00623,119280.0,119270.0,1.16819689]
[1755008134311,0.00623,119280.0,119270.0,0.59946981]
[1755008134526,0.00623,119280.0,119270.0,1.16819689]
[1755008135213,0.00623,119280.0,119270.0,1.03371689]
[1755008135433,0.00623,119280.0,119270.0,1.16815689]
[1755008136092,0.00623,119280.0,119270.0,0.59942981]
[1755008136300,0.00623,119280.0,119270.0,1.16815689]
[1755008136969,0.00623,119280.0,119270.0,0.59942981]
[1755008137196,0.00623,119280.0,119270.0,1.86815689]
[1755008139165,0.00623,119280.0,119270.0,1.29942981]
[1755008139386,0.00623,119280.0,119270.0,1.86815689]
[1755008140044,0.001,119280.0,119270.0,1.87012689]
[1755008140261,0.001,119280.0,119270.0,1.87311689]
[1755008140704,0.00314,119280.0,119270.0,1.87012689]
[1755008141148,0.00314,119280.0,119270.0,1.86815689]
[1755008141363,0.00629,119280.0,119270.0,1.86815689]
[1755008143996,0.00629,119280.0,119270.0,1.29942981]
[1755008144424,0.00629,119280.0,119270.0,1.86815689]
[1755008145113,0.00629,119280.0,119270.0,1.86803689]
[1755008145754,0.00629,119280.0,119270.0,1.29930981]
[1755008145968,0.00629,119280.0,119270.0,1.86803689]
[1755008146186,0.1739627,119280.0,119270.0,1.16498981]
[1755008146403,0.00629,119280.0,119270.0,1.29930981]
[1755008147480,0.00629,119280.0,119270.0,1.86803689]
[1755008147761,0.00629,119280.0,119270.0,1.29930981]
[1755008147762,0.1739627,119280.0,119270.0,1.29930981]
[1755008147978,0.1739627,119280.0,119270.0,1.08226656]
[1755008148198,0.2000327,119280.0,119270.0,1.21658656]
[1755008148426,0.03236,119280.0,119270.0,1.21658656]
[1755008148632,0.03236,119280.0,119270.0,1.78531364]
[1755008148845,0.00629,119280.0,119270.0,1.78531364]
[1755008149483,0.00629,119280.0,119270.0,1.08531364]
[1755008149923,0.00314,119280.0,119270.0,1.16803689]
[1755008150131,0.00314,119280.0,119270.0,1.17299689]
[1755008150580,0.00314,119280.0,119270.0,1.17000689]
[1755008152081,0.00314,119280.0,119270.0,0.60127981]
[1755008152308,0.1739627,119280.0,119270.0,0.46498981]
[1755008152522,0.1739227,119280.0,119270.0,0.3488598]
[1755008152740,0.1739227,119280.0,119270.0,0.50324676]
[1755008156075,0.1739227,119280.0,119270.0,0.33556]
[1755008156290,0.18621936,119280.0,119270.0,0.33556]
[1755008156721,0.1739227,119280.0,119270.0,0.50324676]
[1755008156932,0.1739227,119280.0,119270.0,0.33556]
[1755008157563,0.1739227,119280.0,119270.0,0.20128]
[1755008157791,0.74264978,119280.0,119270.0,0.33552]
[1755008158234,0.76871978,119280.0,119270.0,0.33552]
[1755008158448,0.93392746,119280.0,119270.0,4e-05]
[1755008158673,0.95910646,119280.0,119270.0,0.13428]
[1755008159063,0.95814646,119280.0,119270.0,0.13428]
[1755008159707,0.38941938,119280.0,119270.0,0.13428]
[1755008159906,0.95814646,119280.0,119270.0,0.13428]
[1755008160131,0.96114646,119280.0,119270.0,0.13428]
[1755008161781,0.96114646,119280.0,119270.0,4e-05]
[1755008161782,1.52987354,119280.0,119270.0,4e-05]
[1755008161983,1.52987354,119280.0,119270.0,0.13424]
[1755008161984,1.54732256,119280.0,119270.0,0.13424]
[1755008164950,0.97859548,119280.0,119270.0,0.13424]
[1755008167167,0.4098684,119280.0,119270.0,0.13424]
[1755008167308,0.97859548,119280.0,119270.0,0.13424]
[1755008167926,1.54732256,119280.0,119270.0,4e-05]
[1755008169362,0.16768676,119270.0,119260.0,0.1346902]
[1755008169575,0.90692152,119270.0,119260.0,0.1346902]
[1755008171126,0.90892152,119270.0,119260.0,0.1346902]
[1755008172050,0.93410352,119270.0,119260.0,0.1346902]
[1755008172477,0.93710352,119270.0,119260.0,0.1346902]
[1755008172699,0.93710352,119270.0,119260.0,0.0004902]
[1755008173612,1.07126352,119270.0,119260.0,0.0004902]
[1755008173840,1.11270254,119270.0,119260.0,1e-08]
[1755008174850,1.11070254,119270.0,119260.0,1e-08]
[1755008175057,1.11570254,119270.0,119260.0,1e-08]
[1755008175487,1.11270254,119270.0,119260.0,1e-08]
[1755008175921,1.11770254,119270.0,119260.0,1e-08]
[1755008178592,1.14270254,119270.0,119260.0,1e-08]
[1755008178798,1.150521,119270.0,119260.0,1e-08]
[1755008179030,1.1563844,119270.0,119260.0,1e-08]
[1755008179249,1.17439422,119270.0,119260.0,1e-08]
[1755008179459,1.04023422,119270.0,119260.0,1e-08]
[1755008179723,1.1563444,119270.0,119260.0,1e-08]
[1755008179940,0.9972244,119270.0,119260.0,1e-08]
[1755008180148,1.1073544,119270.0,119260.0,1e-08]
[1755008180356,1.101491,119270.0,119260.0,1e-08]
[1755008181420,1.12538754,119270.0,119260.0,1e-08]
[1755008182052,1.11951864,119270.0,119260.0,1e-08]
[1755008182278,1.14451864,119270.0,119260.0,1e-08]
[1755008182486,1.17437824,119270.0,119260.0,1e-08]
[1755008182910,1.16655978,119270.0,119260.0,1e-08]
[1755008183294,1.17438645,119270.0,119260.0,1e-08]
[1755008183750,0.98344978,119270.0,119260.0,1e-08]
[1755008183960,0.97440018,119270.0,119260.0,0.00215001]
[1755008184170,1.10848018,119270.0,119260.0,0.00514001]
[1755008184378,1.10848018,119270.0,119260.0,0.00215001]
[1755008184595,0.28031319,119270.0,119260.0,0.00514001]
[1755008184814,0.84904027,119270.0,119260.0,0.00514001]
[1755008185024,0.28431319,119270.0,119260.0,0.00514001]
[1755008185254,0.25913119,119270.0,119260.0,0.00514001]
[1755008185676,0.25413119,119270.0,119260.0,0.00514001]
[1755008186116,0.25913119,119270.0,119260.0,0.00514001]